bitfinex/quotes_BTCUSD_20241103
["timestamp","ask_amount","ask_price","bid_price","bid_amount"]
[1730646389474,0.001634,67746.0,67745.0,0.147612]
[1730646389688,0.001634,67746.0,67745.0,0.152612]
[1730646390339,0.001634,67746.0,67745.0,0.147612]
[1730646390791,0.001634,67746.0,67734.0,0.005]
[1730646390792,0.0205574,67746.0,67725.0,0.000817]
[1730646391002,0.0205574,67746.0,67744.0,0.147612]
[1730646391216,0.22159028,67745.0,67726.0,0.14579704]
[1730646391393,0.001634,67746.0,67726.0,0.14579704]
[1730646391394,0.001634,67746.0,67743.0,0.147615]
[1730646391625,0.001634,67746.0,67741.0,0.295239]
[1730646391626,0.22159028,67744.0,67741.0,0.295239]
[1730646391805,0.149244,67746.0,67741.0,0.295239]
[1730646392044,0.001634,67746.0,67740.0,0.000817]
[1730646392260,0.001634,67746.0,67741.0,0.147621]
[1730646392261,0.147613,67745.0,67741.0,0.147621]
[1730646392477,0.147615,67744.0,67740.0,0.000817]
[1730646392885,0.001634,67746.0,67741.0,0.295241]
[1730646393105,0.001634,67746.0,67740.0,0.000817]
[1730646393106,0.004634,67746.0,67745.0,0.147612]
[1730646393560,0.001634,67746.0,67745.0,0.147612]
[1730646394191,0.001634,67746.0,67740.0,0.002817]
[1730646394192,0.147621,67741.0,67740.0,0.002817]
[1730646394426,0.228221,67741.0,67740.0,0.002817]
[1730646394662,0.42011804,67741.0,67740.0,0.002817]
[1730646394864,0.42011804,67741.0,67740.0,0.000817]
[1730646395771,0.1267,67741.0,67740.0,0.000817]
[1730646395974,0.1347,67741.0,67740.0,0.001817]
[1730646396180,0.1267,67741.0,67740.0,0.000817]
[1730646396361,0.1267,67741.0,67740.0,0.14844]
[1730646396500,0.1347,67741.0,67740.0,0.15044]
[1730646396697,0.1347,67741.0,67740.0,0.14944]
[1730646396908,0.0806,67741.0,67740.0,0.14944]
[1730646397116,0.001634,67746.0,67740.0,0.14944]
[1730646397117,0.001634,67746.0,67742.0,0.147617]
[1730646397337,0.001634,67746.0,67740.0,0.29606]
[1730646397338,0.01,67741.0,67740.0,0.149439]
[1730646397552,0.157621,67741.0,67740.0,0.001817]
[1730646397987,0.29341804,67741.0,67740.0,0.000817]
[1730646398190,0.29941804,67741.0,67740.0,0.001817]
[1730646398412,0.29341804,67741.0,67740.0,0.000817]
[1730646399463,0.29741804,67741.0,67740.0,0.000817]
[1730646399882,0.31341804,67741.0,67740.0,0.002817]
[1730646400262,0.30541804,67741.0,67740.0,0.001817]
[1730646400661,0.32880719,67741.0,67740.0,0.002817]
[1730646400871,0.03538915,67741.0,67740.0,0.002817]
[1730646401070,0.03538915,67741.0,67740.0,0.15044]
[1730646401232,0.024,67741.0,67740.0,0.15044]
[1730646401871,0.024,67741.0,67740.0,0.17344]
[1730646402116,0.02,67741.0,67740.0,0.17344]
[1730646402342,0.012,67741.0,67740.0,0.17244]
[1730646402543,0.012,67741.0,67740.0,0.17644]
[1730646402835,0.001634,67746.0,67740.0,0.000817]
[1730646402980,0.001634,67746.0,67745.0,0.147612]
[1730646403638,0.001634,67746.0,67745.0,0.170612]
[1730646404218,0.001634,67746.0,67745.0,0.147612]
[1730646404592,0.001634,67746.0,67745.0,0.152612]
[1730646405860,0.001634,67746.0,67745.0,0.32640904]
[1730646409385,0.001634,67746.0,67745.0,0.42640904]
[1730646409599,0.001634,67746.0,67745.0,0.43140904]
[1730646410290,0.001634,67746.0,67745.0,0.42640904]
[1730646410716,0.001634,67746.0,67745.0,0.40740904]
[1730646410717,0.002634,67746.0,67745.0,0.40740904]
[1730646411147,0.002634,67746.0,67745.0,0.169612]
[1730646411822,0.002634,67746.0,67745.0,0.022]
[1730646412203,0.01401066,67746.0,67745.0,0.169612]
[1730646412455,0.002634,67746.0,67745.0,0.169612]
[1730646412660,0.002634,67746.0,67745.0,0.022]
[1730646412865,0.150244,67746.0,67745.0,0.022]
[1730646413056,0.01401066,67746.0,67745.0,0.022]
[1730646413258,0.04691601,67746.0,67745.0,0.022]
[1730646413376,0.16162066,67746.0,67745.0,0.022]
[1730646413630,0.3114177,67746.0,67745.0,0.013]
[1730646413834,0.3114177,67746.0,67741.0,0.000817]
[1730646413835,0.26510856,67746.0,67741.0,0.000817]
[1730646414041,0.147618,67742.0,67741.0,0.000817]
[1730646414281,0.3047917,67742.0,67741.0,0.000817]
[1730646415145,0.4397917,67742.0,67741.0,0.000817]
[1730646415272,0.45299256,67742.0,67741.0,0.000817]
[1730646415469,0.45699256,67742.0,67741.0,0.001817]
[1730646416072,0.45299256,67742.0,67741.0,0.000817]
[1730646416872,0.46499256,67742.0,67741.0,0.001817]
[1730646417107,0.57670052,67742.0,67741.0,0.001817]
[1730646417280,0.57670052,67742.0,67741.0,0.000817]
[1730646417281,0.56470052,67742.0,67741.0,0.000817]
[1730646417686,0.57370052,67742.0,67741.0,0.001817]
[1730646418092,0.57770052,67742.0,67741.0,0.002817]
[1730646418374,0.46699256,67742.0,67741.0,0.001817]
[1730646418586,0.46199256,67742.0,67741.0,0.002817]
[1730646418825,0.16357752,67742.0,67741.0,0.001817]
[1730646419025,0.29299466,67742.0,67741.0,0.000817]
[1730646419226,0.32719552,67742.0,67741.0,0.002817]
[1730646419648,0.39962387,67742.0,67741.0,0.000817]
[1730646419856,0.40362387,67742.0,67741.0,0.001817]
[1730646420050,0.56342091,67742.0,67741.0,0.002817]
[1730646420544,0.45699256,67742.0,67741.0,0.001817]
[1730646420671,0.16357752,67742.0,67741.0,0.001817]
[1730646420875,0.17557752,67742.0,67741.0,0.002817]
[1730646421082,0.293618,67742.0,67741.0,0.002817]
[1730646421307,0.17156915,67742.0,67741.0,0.001817]
[1730646421511,0.04156915,67742.0,67741.0,0.149438]
[1730646421709,0.02737275,67742.0,67741.0,0.149438]
[1730646421882,0.02337275,67742.0,67741.0,0.149438]
[1730646422083,0.001634,67746.0,67742.0,0.442853]
[1730646422285,0.0113767,67745.0,67741.0,0.148436]
[1730646422486,0.001634,67746.0,67741.0,0.148436]
[1730646422487,0.014,67742.0,67741.0,0.001817]
[1730646422877,0.014,67742.0,67741.0,0.150438]
[1730646423063,0.001634,67746.0,67745.0,0.147612]
[1730646423305,0.01901191,67746.0,67742.0,0.001]
[1730646423500,0.01137791,67745.0,67742.0,0.001]
[1730646423615,0.01137791,67744.0,67742.0,0.001]
[1730646423824,0.001634,67746.0,67745.0,0.147612]
[1730646424024,0.001634,67746.0,67743.0,0.147616]
[1730646424296,0.01137748,67745.0,67741.0,0.003817]
[1730646424498,0.01137748,67744.0,67743.0,0.147616]
[1730646424755,0.001634,67746.0,67745.0,0.152612]
[1730646425036,0.001634,67746.0,67745.0,0.275612]
[1730646425479,0.22159028,67766.0,67745.0,0.275612]
[1730646425480,0.2405528,67773.0,67767.0,0.005]
[1730646425691,0.01138567,67772.0,67767.0,0.42136104]
[1730646425906,0.22159028,67775.0,67767.0,0.42136104]
[1730646426118,0.22159028,67775.0,67767.0,0.39836104]
[1730646426966,0.22659028,67791.0,67767.0,0.39836104]
[1730646427172,0.295041,67788.0,67767.0,0.39836104]
[1730646427382,0.01137576,67781.0,67767.0,0.29336104]
[1730646427619,0.01137576,67781.0,67767.0,0.147564]
[1730646427825,0.002634,67768.0,67767.0,0.155564]
[1730646428939,0.002634,67768.0,67767.0,0.167564]
[1730646429183,0.001634,67768.0,67767.0,0.147564]
[1730646429395,0.001634,67768.0,67767.0,0.149564]
[1730646429598,0.001634,67768.0,67767.0,0.162564]
[1730646429952,0.001634,67768.0,67767.0,0.160564]
[1730646430347,0.002634,67768.0,67767.0,0.169564]
[1730646431083,0.002634,67768.0,67767.0,0.17251496]
[1730646431316,0.002634,67768.0,67767.0,0.42331199]
[1730646431466,0.002634,67768.0,67767.0,0.42036104]
[1730646433461,0.001638,67784.0,67783.0,0.147529]
[1730646433624,0.001638,67784.0,67783.0,0.30127622]
[1730646433834,0.001638,67784.0,67783.0,0.147529]
[1730646435682,0.001638,67784.0,67783.0,0.150529]
[1730646436099,0.001638,67784.0,67783.0,0.147529]
[1730646436308,0.002638,67784.0,67783.0,0.150529]
[1730646436511,0.002638,67784.0,67783.0,0.003]
[1730646436713,0.002638,67784.0,67770.0,0.005]
[1730646436714,0.083,67783.0,67776.0,0.22159028]
[1730646436922,0.083,67783.0,67777.0,0.295085]
[1730646437293,0.22159028,67782.0,67768.0,0.22159028]
[1730646437705,0.22159028,67782.0,67776.0,0.22159028]
[1730646437706,0.049,67781.0,67776.0,0.22159028]
[1730646437921,0.049,67781.0,67768.0,0.51671328]
[1730646438131,0.049,67781.0,67759.0,0.005]
[1730646438132,0.22159028,67780.0,67759.0,0.005]
[1730646438256,0.19479704,67781.0,67759.0,0.005]
[1730646438257,0.147547,67775.0,67770.0,0.147556]
[1730646438457,0.19479704,67781.0,67771.0,0.295111]
[1730646438653,0.147539,67779.0,67774.0,0.147548]
[1730646438855,0.147536,67780.0,67770.0,0.22159028]
[1730646439055,0.22374054,67781.0,67770.0,0.22159028]
[1730646439276,0.22374054,67781.0,67771.0,0.295111]
[1730646439476,0.147538,67779.0,67773.0,0.14755]
[1730646439706,0.049,67781.0,67773.0,0.2951]
[1730646439901,0.049,67781.0,67774.0,0.002]
[1730646440136,0.11452743,67781.0,67772.0,0.147552]
[1730646440333,0.295076,67779.0,67769.0,0.22159028]
[1730646440564,0.26432447,67781.0,67769.0,0.22159028]
[1730646440565,0.295085,67777.0,67769.0,0.22159028]
[1730646440734,0.147545,67776.0,67769.0,0.22159028]
[1730646441126,0.147547,67775.0,67770.0,0.147557]
[1730646441895,0.14579704,67778.0,67775.0,0.147545]
[1730646442090,0.12316143,67781.0,67775.0,0.147545]
[1730646442091,0.057634,67781.0,67775.0,0.295094]
[1730646442305,0.057634,67781.0,67780.0,0.147536]
[1730646442981,0.050634,67781.0,67780.0,0.147536]
[1730646443437,0.050634,67781.0,67778.0,0.29508]
[1730646443438,0.050634,67781.0,67760.0,0.01]
[1730646443639,0.0641612,67781.0,67775.0,0.36913628]
[1730646443912,0.0641612,67781.0,67762.0,0.24579704]
[1730646443913,0.44087104,67780.0,67769.0,0.147558]
[1730646444062,0.44087104,67780.0,67770.0,0.22159028]
[1730646444272,0.147542,67777.0,67772.0,0.147551]
[1730646444506,0.147542,67777.0,67769.0,0.147559]
[1730646444507,0.147549,67775.0,67769.0,0.147559]
[1730646444743,0.14755,67774.0,67769.0,0.147559]
[1730646444954,0.14755,67774.0,67770.0,0.147557]
[1730646445161,0.14755,67774.0,67769.0,0.147559]
[1730646445581,0.295073,67780.0,67773.0,0.22159028]
[1730646445781,0.0641612,67781.0,67767.0,0.295126]
[1730646445782,0.198168,67781.0,67776.0,0.147544]
[1730646445988,0.198168,67781.0,67767.0,0.295126]
[1730646445989,0.44086904,67780.0,67767.0,0.295126]
[1730646446190,0.147541,67778.0,67770.0,0.002]
[1730646446398,0.147541,67778.0,67768.0,0.51671428]
[1730646446399,0.147541,67778.0,67773.0,0.14755]
[1730646447384,0.44087104,67780.0,67772.0,0.147551]
[1730646447586,0.147541,67778.0,67772.0,0.147551]
[1730646447808,0.147542,67777.0,67773.0,0.147551]
[1730646448215,0.14579704,67780.0,67773.0,0.147551]
[1730646448413,0.147542,67778.0,67773.0,0.147551]
[1730646448643,0.14579704,67780.0,67772.0,0.295107]
[1730646448840,0.01135298,67779.0,67775.0,0.147545]
[1730646449030,0.01135298,67779.0,67772.0,0.295107]
[1730646449237,0.01135298,67779.0,67776.0,0.147544]
[1730646449238,0.006,67778.0,67776.0,0.147544]
[1730646449478,0.006,67778.0,67777.0,0.147542]
[1730646449649,0.050634,67781.0,67761.0,0.52174328]
[1730646449794,0.050634,67781.0,67780.0,0.147536]
[1730646450405,0.050634,67781.0,67777.0,0.147541]
[1730646450606,0.14579704,67780.0,67761.0,0.22159028]
[1730646450810,0.0936661,67781.0,67775.0,0.22159028]
[1730646451072,0.0936661,67781.0,67774.0,0.147547]
[1730646451073,0.147539,67779.0,67774.0,0.147547]
[1730646451276,0.442608,67780.0,67774.0,0.147547]
[1730646451424,0.15890408,67779.0,67774.0,0.147547]
[1730646451630,0.01137138,67778.0,67775.0,0.147546]
[1730646451842,0.01137138,67778.0,67771.0,0.295111]
[1730646452063,0.01137138,67778.0,67770.0,0.147556]
[1730646452377,0.050634,67781.0,67772.0,0.295107]
[1730646452585,0.0113764,67780.0,67775.0,0.29509]
[1730646452823,0.0113764,67779.0,67778.0,0.147539]
[1730646452973,0.0113764,67779.0,67768.0,0.296122]
[1730646453180,0.0113764,67778.0,67777.0,0.147542]
[1730646453625,0.0113764,67778.0,67770.0,0.296115]
[1730646453626,0.0113764,67778.0,67771.0,0.295111]
[1730646453832,0.0113764,67777.0,67776.0,0.147544]
[1730646454448,0.02958271,67777.0,67776.0,0.147544]
[1730646455882,0.0113764,67777.0,67776.0,0.147544]
[1730646456122,0.0113764,67777.0,67776.0,0.29834104]
[1730646456266,0.001634,67781.0,67776.0,0.29834104]
[1730646456267,0.001634,67781.0,67780.0,0.147536]
[1730646456499,0.001634,67781.0,67780.0,0.1504863]
[1730646456500,0.01304821,67781.0,67780.0,0.1504863]
[1730646456911,0.001634,67781.0,67780.0,0.1504863]
[1730646457112,0.001634,67781.0,67780.0,0.30128334]
[1730646457487,0.001634,67781.0,67780.0,0.29833304]
[1730646458900,0.001634,67781.0,67780.0,0.30933304]
[1730646459099,0.001634,67781.0,67780.0,0.31033304]
[1730646459528,0.001634,67781.0,67780.0,0.30433304]
[1730646459768,0.001634,67781.0,67780.0,0.158536]
[1730646460013,0.11148329,67781.0,67780.0,0.006]
[1730646460233,0.30463109,67781.0,67780.0,0.006]
[1730646460446,0.25901426,67781.0,67780.0,0.019]
[1730646461057,0.11148126,67781.0,67780.0,0.019]
[1730646461291,0.25901426,67781.0,67780.0,0.019]
[1730646461803,0.25901426,67781.0,67780.0,0.013]
[1730646462012,0.25901426,67781.0,67780.0,0.002]
[1730646462511,0.0932383,67781.0,67780.0,0.013]
[1730646462731,0.25900141,67781.0,67780.0,0.013]
[1730646462955,0.229367,67781.0,67780.0,0.013]
[1730646463157,0.2589996,67781.0,67780.0,0.02]
[1730646466216,0.229367,67781.0,67780.0,0.02]
[1730646466487,0.25900562,67781.0,67780.0,0.02]
[1730646466908,0.11147262,67781.0,67780.0,0.02]
[1730646467110,0.11147262,67781.0,67780.0,0.167536]
[1730646467111,0.03127262,67781.0,67780.0,0.167536]
[1730646467394,0.01303347,67781.0,67780.0,0.167536]
[1730646467812,0.01303347,67781.0,67780.0,0.02]
[1730646468041,0.01303347,67781.0,67780.0,0.167536]
[1730646468758,0.001634,67781.0,67780.0,0.167536]
[1730646468957,0.001634,67781.0,67780.0,0.17048648]
[1730646469987,0.001634,67781.0,67780.0,0.167536]
[1730646471633,0.001634,67781.0,67780.0,0.16643622]
[1730646474477,0.001634,67781.0,67780.0,0.01890022]
[1730646474721,0.02811479,67781.0,67780.0,0.01890022]
[1730646474920,0.16056729,67781.0,67780.0,0.01890022]
[1730646475342,0.17880654,67781.0,67780.0,0.01890022]
[1730646475589,0.16056729,67781.0,67780.0,0.01890022]
[1730646475803,0.17880654,67781.0,67780.0,0.01890022]
[1730646476446,0.149167,67781.0,67780.0,0.01890022]
[1730646476641,0.16056708,67781.0,67780.0,0.01890022]
[1730646477847,0.15556708,67781.0,67780.0,0.01890022]
[1730646478276,0.17380721,67781.0,67780.0,0.01890022]
[1730646478476,0.15556708,67781.0,67780.0,0.01890022]
[1730646479541,0.15720108,67781.0,67780.0,0.01890022]
[1730646480166,0.29845973,67781.0,67780.0,0.01890022]
[1730646480345,0.29854121,67781.0,67780.0,0.01890022]
[1730646480878,0.44433825,67781.0,67780.0,0.01890022]
[1730646481630,0.44433825,67781.0,67780.0,0.018]
[1730646481851,0.45133825,67781.0,67780.0,0.019]
[1730646482177,0.45131573,67781.0,67780.0,0.019]
[1730646482380,0.30551869,67781.0,67780.0,0.019]
[1730646482589,0.30551955,67781.0,67780.0,0.019]
[1730646482795,0.29851955,67781.0,67780.0,0.018]
[1730646483111,0.03125255,67781.0,67780.0,0.018]
[1730646483322,0.01302727,67781.0,67776.0,0.147543]
[1730646483537,0.01139327,67780.0,67779.0,0.147537]
[1730646484189,0.001634,67781.0,67780.0,0.147536]
[1730646484382,0.001634,67781.0,67780.0,0.15148641]
[1730646484383,0.010634,67781.0,67780.0,0.15148641]
[1730646484593,0.010634,67781.0,67780.0,0.148536]
[1730646484842,0.010634,67781.0,67780.0,0.147536]
[1730646484843,0.001634,67781.0,67780.0,0.147536]
[1730646485173,0.001634,67781.0,67779.0,0.295076]
[1730646485174,0.002,67780.0,67779.0,0.001]
[1730646485428,0.01338764,67780.0,67779.0,0.001]
[1730646485605,0.01338746,67780.0,67774.0,0.51668728]
[1730646485811,0.01138746,67779.0,67775.0,0.147547]
[1730646486025,0.01138746,67779.0,67774.0,0.51668728]
[1730646486026,0.01138746,67778.0,67777.0,0.147542]
[1730646486257,0.01138746,67778.0,67765.0,0.005]
[1730646486488,0.01138746,67777.0,67776.0,0.147544]
[1730646488009,0.01138746,67777.0,67776.0,0.148544]
[1730646488232,0.01138746,67777.0,67776.0,0.147544]
[1730646488688,0.01338746,67777.0,67776.0,0.147544]
[1730646489013,0.01138746,67777.0,67776.0,0.147544]
[1730646489557,0.01138746,67777.0,67776.0,0.150544]
[1730646489704,0.01138746,67777.0,67776.0,0.147544]
[1730646490091,0.01138746,67777.0,67776.0,0.151544]
[1730646490465,0.08818746,67777.0,67776.0,0.151544]
[1730646491028,0.09018746,67777.0,67776.0,0.152361]
[1730646491241,0.01338746,67777.0,67776.0,0.148361]
[1730646491439,0.01338746,67777.0,67776.0,0.000817]
[1730646491686,0.01138746,67777.0,67776.0,0.000817]
[1730646491906,0.23181631,67777.0,67776.0,0.000817]
[1730646492109,0.22544883,67777.0,67776.0,0.000817]
[1730646492263,0.22546439,67777.0,67776.0,0.000817]
[1730646492464,0.193842,67777.0,67776.0,0.000817]
[1730646492686,0.22646318,67777.0,67776.0,0.000817]
[1730646492838,0.22646318,67777.0,67776.0,0.003817]
[1730646493093,0.3082879,67777.0,67776.0,0.003817]
[1730646493293,0.22646318,67777.0,67776.0,0.003817]
[1730646493518,0.22646318,67777.0,67776.0,0.000817]
[1730646494010,0.22446318,67777.0,67776.0,0.000817]
[1730646494208,0.22346318,67777.0,67776.0,0.000817]
[1730646494453,0.23146318,67777.0,67776.0,0.001817]
[1730646494652,0.23246318,67777.0,67776.0,0.001817]
[1730646494853,0.31975141,67777.0,67776.0,0.000817]
[1730646495174,0.32775141,67777.0,67776.0,0.001817]
[1730646495555,0.202842,67777.0,67776.0,0.001817]
[1730646495754,0.23245057,67777.0,67776.0,0.001817]
[1730646496365,0.50092746,67777.0,67776.0,0.001817]
[1730646496571,0.48194761,67777.0,67776.0,0.001817]
[1730646496802,0.73149053,67777.0,67776.0,0.001817]
[1730646496993,0.87528343,67777.0,67776.0,0.001817]
[1730646497196,0.62574051,67777.0,67776.0,0.001817]
[1730646497399,0.6914793,67777.0,67776.0,0.001817]
[1730646497968,1.0484793,67777.0,67776.0,0.001817]
[1730646498178,1.25417615,67777.0,67776.0,0.001817]
[1730646498583,1.25217615,67777.0,67776.0,0.001817]
[1730646499142,1.25214505,67777.0,67776.0,0.001817]
[1730646499345,1.14249056,67777.0,67776.0,0.001817]
[1730646499750,1.25214505,67777.0,67776.0,0.001817]
[1730646499952,1.25196928,67777.0,67776.0,0.001817]
[1730646500178,0.30086,67769.0,67768.0,0.000817]
[1730646500378,0.44665704,67769.0,67768.0,0.000817]
[1730646500704,0.48576816,67769.0,67768.0,0.000817]
[1730646501457,0.48776816,67769.0,67768.0,0.000817]
[1730646501659,0.49276816,67769.0,67768.0,0.000817]
[1730646501874,0.52235135,67769.0,67768.0,0.000817]
[1730646502586,0.52235135,67769.0,67768.0,0.003817]
[1730646502786,0.49276816,67769.0,67768.0,0.003817]
[1730646503046,0.47825243,67769.0,67768.0,0.003817]
[1730646503806,0.46687205,67769.0,67768.0,0.003817]
[1730646504013,0.47825643,67769.0,67768.0,0.003817]
[1730646504871,0.48325643,67769.0,67768.0,0.003817]
[1730646505209,0.48125643,67769.0,67768.0,0.003817]
[1730646505470,0.62708217,67769.0,67768.0,0.000817]
[1730646505833,0.62808217,67769.0,67768.0,0.001817]
[1730646506045,0.87808217,67769.0,67768.0,0.001817]
[1730646506235,0.92186283,67769.0,67768.0,0.001817]
[1730646506464,0.92386283,67769.0,67768.0,0.001817]
[1730646506793,0.97808217,67769.0,67768.0,0.001817]
[1730646507208,0.98908217,67769.0,67768.0,0.002817]
[1730646507372,1.03285201,67769.0,67768.0,0.002817]
[1730646508062,1.05477575,67769.0,67768.0,0.002817]
[1730646508259,1.03285949,67769.0,67768.0,0.002817]
[1730646509942,0.98908217,67769.0,67768.0,0.002817]
[1730646512750,1.03418328,67769.0,67768.0,0.002817]
[1730646512958,1.21781681,67769.0,67768.0,0.002817]
[1730646513161,0.246794,67753.0,67752.0,0.22159028]
[1730646513362,0.42219043,67753.0,67752.0,0.22159028]
[1730646513773,0.14761,67746.0,67745.0,0.22240728]
[1730646514183,0.14761,67746.0,67745.0,0.000817]
[1730646515016,0.2214124,67746.0,67745.0,0.000817]
[1730646515391,0.15896884,67746.0,67745.0,0.000817]
[1730646515635,0.14761,67746.0,67745.0,0.000817]
[1730646515858,0.15896766,67746.0,67745.0,0.008817]
[1730646516030,0.14761,67746.0,67745.0,0.008817]
[1730646516242,0.15896584,67746.0,67745.0,0.011817]
[1730646516845,0.01135584,67746.0,67745.0,0.011817]
[1730646517290,0.15896584,67746.0,67745.0,0.011817]
[1730646517433,0.20438282,67746.0,67745.0,0.011817]
[1730646517857,0.15896584,67746.0,67745.0,0.011817]
[1730646518419,0.17713623,67746.0,67745.0,0.011817]
[1730646519061,0.02952623,67746.0,67745.0,0.011817]
[1730646519297,0.15896584,67746.0,67745.0,0.011817]
[1730646520198,0.01135584,67746.0,67745.0,0.011817]
[1730646520608,0.15896584,67746.0,67745.0,0.011817]
[1730646520832,0.17713623,67746.0,67745.0,0.011817]
[1730646521054,0.02952623,67746.0,67745.0,0.011817]
[1730646521266,0.01135584,67746.0,67745.0,0.011817]
[1730646521717,0.15896584,67746.0,67745.0,0.011817]
[1730646521941,0.17713623,67746.0,67745.0,0.011817]
[1730646522176,0.02952623,67746.0,67745.0,0.011817]
[1730646522400,0.01135584,67746.0,67745.0,0.011817]
[1730646522618,0.17713623,67746.0,67745.0,0.011817]
[1730646523065,0.25389175,67746.0,67745.0,0.011817]
[1730646523889,0.39968879,67746.0,67745.0,0.011817]
[1730646525575,0.4186152,67746.0,67745.0,0.011817]
[1730646525942,0.4466152,67746.0,67745.0,0.011817]
[1730646526202,0.42768879,67746.0,67745.0,0.011817]
[1730646527008,0.42768879,67746.0,67745.0,0.008817]
[1730646527422,0.43468879,67746.0,67745.0,0.009817]
[1730646527617,0.43968879,67746.0,67745.0,0.009817]
[1730646527912,0.56798879,67746.0,67745.0,0.001817]
[1730646528049,0.56798879,67746.0,67745.0,0.002817]
[1730646528050,0.67098879,67746.0,67745.0,0.002817]
[1730646528517,0.67098879,67746.0,67741.0,0.000817]
[1730646528518,0.157618,67742.0,67741.0,0.000817]
[1730646528688,0.67361117,67742.0,67741.0,0.000817]
[1730646529658,0.67661117,67742.0,67741.0,0.001817]
[1730646529865,0.68861117,67742.0,67741.0,0.002817]
[1730646530299,0.69061117,67742.0,67741.0,0.002817]
[1730646530500,0.98371117,67742.0,67741.0,0.002817]
[1730646531877,0.98571117,67742.0,67741.0,0.002817]
[1730646532836,0.98571646,67742.0,67741.0,0.002817]
[1730646533731,0.98571646,67742.0,67733.0,0.22159028]
[1730646533732,0.005,67734.0,67733.0,0.22159028]
[1730646533972,0.42280872,67734.0,67733.0,0.22159028]
[1730646534214,0.147651,67727.0,67725.0,0.000817]
[1730646534432,0.31162372,67727.0,67725.0,0.000817]
[1730646534636,0.147653,67726.0,67725.0,0.000817]
[1730646534909,0.16582868,67726.0,67725.0,0.000817]
[1730646535338,0.39020271,67726.0,67725.0,0.000817]
[1730646536294,0.39019017,67726.0,67725.0,0.007817]
[1730646537014,0.39019017,67726.0,67725.0,0.009817]
[1730646537453,0.39019017,67726.0,67725.0,0.007817]
[1730646537672,0.31961318,67726.0,67725.0,0.001817]
[1730646538407,0.32361318,67726.0,67725.0,0.001817]
[1730646539402,0.33486228,67726.0,67725.0,0.001817]
[1730646539641,0.159653,67726.0,67725.0,0.001817]
[1730646539869,0.1888998,67726.0,67725.0,0.001817]
[1730646540148,0.20764817,67726.0,67725.0,0.001817]
[1730646540849,0.0412468,67726.0,67725.0,0.001817]
[1730646541104,0.1888998,67726.0,67725.0,0.001817]
[1730646541342,0.0412468,67726.0,67725.0,0.001817]
[1730646541581,0.04125631,67726.0,67725.0,0.149472]
[1730646541802,0.04125631,67726.0,67725.0,0.001817]
[1730646542002,0.04125193,67726.0,67725.0,0.148472]
[1730646542251,0.02925193,67726.0,67725.0,0.148472]
[1730646542513,0.03625193,67726.0,67725.0,0.149472]
[1730646542732,0.03925193,67726.0,67725.0,0.001817]
[1730646542963,0.20747015,67726.0,67725.0,0.001817]
[1730646543154,0.35326719,67726.0,67725.0,0.001817]
[1730646543304,0.37201843,67726.0,67725.0,0.001817]
[1730646543501,0.05800317,67726.0,67725.0,0.149472]
[1730646543695,0.03925193,67726.0,67725.0,0.149472]
[1730646543905,0.03925193,67726.0,67725.0,0.001817]
[1730646544318,0.05800317,67726.0,67725.0,0.001817]
[1730646544605,0.03925193,67726.0,67725.0,0.37106228]
[1730646544803,0.03925193,67726.0,67725.0,0.149472]
[1730646545426,0.01,67726.0,67725.0,0.149472]
[1730646545651,0.02102176,67726.0,67725.0,0.148472]
[1730646545873,0.003,67726.0,67725.0,0.148472]
[1730646546164,0.02928598,67726.0,67725.0,0.150472]
[1730646546561,0.02928598,67726.0,67725.0,0.148472]
[1730646546676,0.02928598,67726.0,67725.0,0.000817]
[1730646546896,0.02928598,67726.0,67725.0,0.005817]
[1730646547108,0.17693898,67726.0,67725.0,0.005817]
[1730646547367,0.17693898,67726.0,67725.0,0.012817]
[1730646547575,0.17693898,67726.0,67725.0,0.005817]
[1730646548253,0.17893898,67726.0,67725.0,0.005817]
[1730646548660,0.17893898,67726.0,67725.0,0.153472]
[1730646548661,0.03128598,67726.0,67725.0,0.153472]
[1730646548838,0.03128598,67726.0,67725.0,0.148472]
[1730646548839,0.02928598,67726.0,67725.0,0.148472]
[1730646549227,0.03828598,67726.0,67725.0,0.15242509]
[1730646549528,0.03828598,67726.0,67725.0,0.149472]
[1730646549697,0.03828598,67726.0,67725.0,0.148472]
[1730646549698,0.03128598,67726.0,67725.0,0.148472]
[1730646550073,0.03328598,67726.0,67725.0,0.148472]
[1730646550280,0.03128598,67726.0,67725.0,0.148472]
[1730646550487,0.01126384,67726.0,67725.0,0.148472]
[1730646550687,0.01326384,67726.0,67725.0,0.148472]
[1730646550889,0.01426384,67726.0,67725.0,0.148472]
[1730646551098,0.03029181,67726.0,67725.0,0.000817]
[1730646551298,0.03028876,67726.0,67725.0,0.004]
[1730646551725,0.03028876,67726.0,67722.0,0.295325]
[1730646551920,0.02928876,67725.0,67724.0,0.147657]
[1730646552124,0.04698244,67725.0,67720.0,0.0078987]
[1730646552330,0.14766,67723.0,67720.0,0.0078987]
[1730646552534,0.02928876,67722.0,67720.0,0.0078987]
[1730646552701,0.02928876,67721.0,67720.0,0.0078987]
[1730646552908,0.17695276,67721.0,67720.0,0.0078987]
[1730646553132,0.2637107,67721.0,67720.0,0.0078987]
[1730646553689,0.17695276,67721.0,67720.0,0.0078987]
[1730646554161,0.005,67710.0,67708.0,0.000835]
[1730646554373,0.005,67710.0,67683.0,0.09310503]
[1730646554374,0.105,67678.0,67670.0,0.15653953]
[1730646554580,0.27704676,67678.0,67670.0,0.00235573]
[1730646554776,0.17704676,67678.0,67670.0,0.00235573]
[1730646555523,0.02928876,67678.0,67670.0,0.00235573]
[1730646555963,0.03428876,67678.0,67670.0,0.29790473]
[1730646556193,0.03428876,67678.0,67670.0,0.00235573]
[1730646556194,0.005,67678.0,67670.0,0.00235573]
[1730646556521,0.01622979,67678.0,67677.0,0.164595]
[1730646556727,0.0282267,67678.0,67677.0,0.164595]
[1730646556932,0.017,67678.0,67677.0,0.164595]
[1730646557118,0.005,67678.0,67677.0,0.163595]
[1730646557408,0.0202256,67678.0,67677.0,0.016835]
[1730646557608,0.0252256,67678.0,67677.0,0.017835]